fUST/lending_fUST_20250718
["ID","MTS","AMOUNT","RATE_DAILY","PERIOD"]
[372839802,1752777053010,-542.137991,0.00019178,2]
[372839804,1752777053019,-666.0,0.00019178,2]
[372839806,1752777053029,-151.0,0.00019178,7]
[372839808,1752777053039,-168.0,0.00019231,2]
[372839810,1752777053048,-1124.62,0.00019303,2]
[372839812,1752777053058,-541.9,0.00019303,2]
[372839814,1752777053067,-831.11,0.00019303,2]
[372839816,1752777053077,-509.45,0.00019303,2]
[372839818,1752777053086,-516.75,0.00019303,2]
[372839820,1752777053095,-617.66,0.00019303,2]
[372839822,1752777053104,-460.0,0.00019303,2]
[372839824,1752777053114,-1200.95,0.00019303,2]
[372839826,1752777053123,-460.0,0.00019306,2]
[372839828,1752777053133,-460.0,0.00019306,2]
[372839830,1752777053142,-252.62,0.00019306,2]
[372839832,1752777053156,-460.0,0.00019307,2]
[372839834,1752777053165,-460.0,0.00019307,2]
[372839836,1752777053175,-460.0,0.00019308,2]
[372839838,1752777053184,-460.0,0.00019308,2]
[372839840,1752777053194,-1565.97,0.00019308,2]
[372839842,1752777053206,-460.0,0.00019308,2]
[372839844,1752777053215,-887.34,0.00019308,2]
[372839846,1752777053225,-685.87,0.00019308,2]
[372839848,1752777053235,-590.75,0.00019309,2]
[372839850,1752777053244,-781.36,0.00019312,2]
[372839852,1752777053253,-513.45,0.00019312,2]
[372839854,1752777053262,-1623.29,0.00019312,2]
[372839856,1752777053272,-192.788116,0.00019315,2]
[372839857,1752777053281,-192.788116,0.00019315,2]
[372839860,1752777053290,-151.0,0.00019315,2]
[372839861,1752777053299,-151.0,0.00019315,2]
[372839863,1752777053309,-151.0,0.00019329,2]
[372839866,1752777053318,-215.0738,0.00019371,2]
[372839868,1752777053327,-153.0,0.00019432,2]
[372839869,1752777053336,-153.0,0.00019432,2]
[372839871,1752777053346,-153.0,0.00019432,2]
[372839873,1752777053355,-153.0,0.00019432,2]
[372839875,1752777053364,-153.0,0.00019432,2]
[372839877,1752777053373,-153.0,0.00019432,2]
[372839879,1752777053382,-153.0,0.00019432,2]
[372839881,1752777053391,-168.0,0.00019517,2]
[372839883,1752777053400,-360.0,0.00019549,2]
[372839885,1752777053409,-1124.62,0.00019577,2]
[372839887,1752777053418,-541.9,0.00019577,2]
[372839889,1752777053427,-831.11,0.00019577,2]
[372839891,1752777053436,-509.45,0.00019577,2]
[372839893,1752777053445,-516.75,0.00019577,2]
[372839895,1752777053456,-617.66,0.00019577,2]
[372839897,1752777053465,-460.0,0.00019577,2]
[372839899,1752777053474,-460.0,0.0001958,2]
[372839901,1752777053484,-460.0,0.0001958,2]
[372839903,1752777053493,-460.0,0.00019581,2]
[372839905,1752777053503,-244.51,0.00019581,2]
[372839907,1752777053512,-460.0,0.00019582,2]
[372839909,1752777053521,-460.0,0.00019582,2]
[372839911,1752777053530,-1565.97,0.00019582,2]
[372839913,1752777053540,-460.0,0.00019582,2]
[372839915,1752777053549,-887.34,0.00019582,2]
[372839917,1752777053559,-685.87,0.00019582,2]
[372839919,1752777053568,-590.75,0.00019583,2]
[372839921,1752777053578,-781.36,0.00019586,2]
[372839923,1752777053587,-513.45,0.00019586,2]
[372839925,1752777053598,-1623.29,0.00019586,2]
[372839926,1752777053607,-2372.16468111,0.00019617,2]
[372839928,1752777053616,-912.791,0.00019695,2]
[372839930,1752777053625,-261.056116,0.00019746,2]
[372839932,1752777053634,-153.0,0.00019781,2]
[372839934,1752777053643,-153.0,0.00019781,2]
[372839936,1752777053653,-153.0,0.00019781,2]
[372839938,1752777053662,-1768.82808013,0.00019819,2]
[372839940,1752777053672,-1124.62,0.00019851,2]
[372839942,1752777053682,-541.9,0.00019851,2]
[372839944,1752777053691,-831.11,0.00019851,2]
[372839946,1752777053700,-509.45,0.00019851,2]
[372839948,1752777053712,-516.75,0.00019851,2]
[372839950,1752777053721,-617.66,0.00019851,2]
[372839952,1752777053730,-460.0,0.00019851,2]
[372839954,1752777053739,-460.0,0.00019854,2]
[372839956,1752777053748,-460.0,0.00019854,2]
[372839958,1752777053758,-460.0,0.00019855,2]
[372839960,1752777053767,-460.0,0.00019856,2]
[372839962,1752777053777,-460.0,0.00019856,2]
[372839964,1752777053786,-1565.97,0.00019856,2]
[372839966,1752777053796,-460.0,0.00019856,2]
[372839968,1752777053806,-887.34,0.00019856,2]
[372839970,1752777053815,-685.87,0.00019856,2]
[372839972,1752777053825,-590.75,0.00019857,2]
[372839974,1752777053833,-151.0,0.00019859,2]
[372839976,1752777053843,-151.0,0.00019859,2]
[372839977,1752777053853,-781.36,0.0001986,2]
[372839978,1752777053862,-513.45,0.0001986,2]
[372839979,1752777053871,-1623.29,0.0001986,2]
[372839980,1752777053880,-470.34183396,0.00019967,2]
[372839981,1752777053918,-305.0,0.00019577,2]
[372839984,1752777053985,-460.0,0.00016565,2]
[372839985,1752777053994,-895.95,0.00019577,2]
[372839987,1752777054003,-1200.95,0.00019851,2]
[372839990,1752777054013,-408.65816604,0.00019967,2]
[372839992,1752777054023,-192.788116,0.0002,2]
[372839993,1752777054032,-192.788116,0.0002,2]
[372839995,1752777054042,-151.0,0.0002,2]
[372839997,1752777054051,-151.0,0.0002,2]
[372840000,1752777054061,-30000.0,0.0002,4]
[372840001,1752777054070,-151.0,0.0002,2]
[372840004,1752777054080,-151.0,0.0002,2]
[372840006,1752777054089,-151.0,0.0002,2]
[372840008,1752777054100,-172.47,0.00020039,2]
[372840010,1752777054110,-460.0,0.00020096,2]
[372840012,1752777054119,-1124.62,0.00020125,2]
[372840014,1752777054129,-541.9,0.00020125,2]
[372840016,1752777054138,-831.11,0.00020125,2]
[372840018,1752777054149,-509.45,0.00020125,2]
[372840020,1752777054161,-516.75,0.00020125,2]
[372840022,1752777054170,-617.66,0.00020125,2]
[372840024,1752777054181,-460.0,0.00020125,2]
[372840026,1752777054190,-1200.95,0.00020125,2]
[372840028,1752777054200,-460.0,0.00020128,2]
[372840030,1752777054211,-460.0,0.00020128,2]
[372840032,1752777054220,-460.0,0.00020129,2]
[372840034,1752777054232,-365.07315959,0.0002013,2]
[372840036,1752777054242,-460.0,0.0002013,2]
[372840038,1752777054251,-1565.97,0.0002013,2]
[372840040,1752777054261,-460.0,0.0002013,2]
[372840042,1752777054271,-887.34,0.0002013,2]
[372840044,1752777054280,-685.87,0.0002013,2]
[372840047,1752777054289,-590.75,0.00020131,2]
[372840048,1752777054298,-781.36,0.00020134,2]
[372840050,1752777054308,-513.45,0.00020134,2]
[372840052,1752777054318,-1623.29,0.00020134,2]
[372840055,1752777054327,-500.0,0.00020175,2]
[372840057,1752777054336,-499.239471,0.00020187,2]
[372840059,1752777054346,-151.0,0.000202,4]
[372840061,1752777054355,-387.287709,0.00020235,2]
[372840063,1752777054364,-387.287709,0.00020235,2]
[372840065,1752777054374,-207.7516746,0.00020239,2]
[372840067,1752777054383,-315.32243225,0.00020246,2]
[372840069,1752777054393,-501.58885187,0.0002025,2]
[372840071,1752777054403,-500.0,0.0002025,2]
[372840073,1752777054413,-153.0,0.00020254,2]
[372840075,1752777054423,-23.91881326,0.0002027,2]
[372840109,1752777054737,-500.0,0.00016561,2]
[372840111,1752777054748,-500.0,0.00016561,2]
[372840113,1752777054758,-500.0,0.00016561,2]
[372840115,1752777054768,-500.0,0.00016561,2]
[372840117,1752777054778,-500.0,0.00016561,2]
[372840119,1752777054787,-500.0,0.00016561,2]
[372840121,1752777054797,-500.0,0.00016561,2]
[372840123,1752777054806,-300.41743259,0.00016561,2]
[372840125,1752777054816,-500.0,0.00016561,2]
[372840127,1752777054826,-500.0,0.00016561,2]
[372840129,1752777054836,-500.0,0.00016561,2]
[372840131,1752777054845,-500.0,0.00016561,2]
[372840134,1752777054855,-500.0,0.00016561,2]
[372840136,1752777054864,-500.0,0.00016561,2]
[372840138,1752777054873,-500.0,0.00016561,2]
[372840140,1752777054883,-460.0,0.00016562,2]
[372840141,1752777054892,-460.0,0.00016562,2]
[372840143,1752777054901,-460.0,0.00016562,2]
[372840146,1752777054910,-460.0,0.00016567,2]
[372840147,1752777054920,-2514.36570485,0.00016567,2]
[372840150,1752777054930,-500.0,0.00016568,2]
[372840152,1752777054939,-460.0,0.00016568,2]
[372840154,1752777054949,-476.08118674,0.0002027,2]
[372840156,1752777054959,-961.202264,0.00020271,8]
[372840158,1752777054968,-500.0,0.0002028,2]
[372840160,1752777054977,-500.0,0.00020287,2]
[372840162,1752777054986,-153.0,0.00020301,2]
[372840164,1752777054995,-151.0,0.00020314,2]
[372840166,1752777055004,-220.51795754,0.00020389,2]
[372840168,1752777055013,-1124.62,0.00020399,2]
[372840170,1752777055022,-541.9,0.00020399,2]
[372840172,1752777055032,-831.11,0.00020399,2]
[372840174,1752777055041,-509.45,0.00020399,2]
[372840176,1752777055050,-516.75,0.00020399,2]
[372840178,1752777055060,-617.66,0.00020399,2]
[372840180,1752777055069,-460.0,0.00020399,2]
[372840182,1752777055078,-1200.95,0.00020399,2]
[372840184,1752777055087,-512.57,0.00020402,2]
[372840186,1752777055096,-460.0,0.00020402,2]
[372840188,1752777055105,-460.0,0.00020403,2]
[372840190,1752777055115,-460.0,0.00020404,2]
[372840192,1752777055125,-1565.97,0.00020404,2]
[372840194,1752777055134,-460.0,0.00020404,2]
[372840196,1752777055144,-887.34,0.00020404,2]
[372840198,1752777055157,-685.87,0.00020404,2]
[372840200,1752777055166,-590.75,0.00020405,2]
[372840202,1752777055175,-781.36,0.00020408,2]
[372840204,1752777055184,-513.45,0.00020408,2]
[372840206,1752777055194,-1623.29,0.00020408,2]
[372840208,1752777055204,-2155.0,0.00020417,2]
[372840210,1752777055213,-968.0,0.00020417,2]
[372840211,1752777055224,-407.0,0.00020417,2]
[372840214,1752777055234,-414.376,0.00020417,2]
[372840216,1752777055243,-151.0,0.00020417,2]
[372840217,1752777055252,-151.0,0.00020417,2]
[372840219,1752777055262,-151.0,0.00020417,2]
[372840222,1752777055271,-151.0,0.00020417,2]
[372840223,1752777055280,-208.043851,0.00020417,2]
[372840226,1752777055291,-208.043851,0.00020417,2]
[372840228,1752777055300,-151.0,0.00020512,2]
[372840230,1752777055309,-151.0,0.00020512,2]
[372840232,1752777055318,-158.30029826,0.00020512,2]
[372840233,1752777055327,-151.0,0.00020512,2]
[372840236,1752777055336,-780.0,0.00020512,2]
[372840238,1752777055346,-151.0,0.00020512,2]
[372840239,1752777055355,-151.0,0.00020512,2]
[372840242,1752777055365,-151.0,0.00020512,2]
[372840243,1752777055375,-653.0,0.00020512,2]
[372840246,1752777055387,-653.0,0.00020512,2]
[372840248,1752777055396,-151.0,0.00020512,2]
[372840250,1752777055405,-151.0,0.00020512,2]
[372840252,1752777055415,-151.0,0.00020512,2]
[372840254,1752777055424,-151.57497679,0.00020512,2]
[372840255,1752777055434,-151.26632728,0.00020512,2]
[372840258,1752777055444,-151.0,0.00020512,2]
[372840260,1752777055454,-274.08742551,0.00020512,2]
[372840262,1752777055463,-193.1393986,0.00020512,2]
[372840264,1752777055473,-151.0,0.00020512,2]
[372840266,1752777055483,-151.48953185,0.00020512,2]
[372840268,1752777055493,-151.0,0.00020512,2]
[372840270,1752777055502,-151.0,0.00020512,2]
[372840272,1752777055512,-151.0,0.00020512,2]
[372840274,1752777055521,-151.0,0.00020512,2]
[372840276,1752777055531,-151.7489704,0.00020512,2]
[372840278,1752777055540,-151.52218414,0.00020512,2]
[372840280,1752777055550,-153.54833042,0.00020512,2]
[372840282,1752777055559,-151.0,0.00020512,2]
[372840284,1752777055570,-151.0,0.00020512,2]
[372840286,1752777055580,-151.0,0.00020512,2]
[372840288,1752777055590,-151.0,0.00020512,2]
[372840290,1752777055599,-151.0,0.00020624,2]
[372840292,1752777055609,-174.767655,0.0002063,2]
[372840294,1752777055619,-174.767655,0.0002063,2]
[372840296,1752777055629,-224.345352,0.0002063,2]
[372840298,1752777055639,-160.0,0.0002063,3]
[372840300,1752777055649,-476.16111942,0.0002063,3]
[372840302,1752777055658,-12607.95677342,0.0002063,3]
[372840304,1752777055667,-151.0,0.0002064,2]
[372840306,1752777055677,-151.0,0.0002064,2]
[372840308,1752777055686,-151.0,0.0002064,2]
[372840310,1752777055695,-560.0,0.00020644,2]
[372840312,1752777055704,-170.460945,0.00020645,2]
[372840314,1752777055714,-250.0,0.00020649,2]
[372840316,1752777055723,-214.44804168,0.00020659,3]
[372840318,1752777055732,-261.056116,0.00020659,3]
[372840320,1752777055742,-1124.62,0.00020673,2]
[372840322,1752777055751,-541.9,0.00020673,2]
[372840324,1752777055761,-831.11,0.00020673,2]
[372840326,1752777055770,-509.45,0.00020673,2]
[372840328,1752777055779,-516.75,0.00020673,2]
[372840330,1752777055788,-617.66,0.00020673,2]
[372840332,1752777055797,-460.0,0.00020673,2]
[372840334,1752777055806,-1200.95,0.00020673,2]
[372840336,1752777055815,-460.0,0.00020676,2]
[372840338,1752777055825,-460.0,0.00020677,2]
[372840340,1752777055835,-460.0,0.00020678,2]
[372840342,1752777055844,-1565.97,0.00020678,2]
[372840344,1752777055853,-460.0,0.00020678,2]
[372840346,1752777055863,-887.34,0.00020678,2]
[372840348,1752777055873,-685.87,0.00020678,2]
[372840350,1752777055883,-590.75,0.00020679,2]
[372840352,1752777055893,-781.36,0.00020682,2]
[372840354,1752777055902,-513.45,0.00020682,2]
[372840356,1752777055911,-1623.29,0.00020682,2]
[372840358,1752777055920,-151.0,0.00020685,2]
[372840360,1752777055929,-500.0,0.00020685,2]
[372840362,1752777055939,-507.93999564,0.00020685,2]
[372840364,1752777055948,-500.0,0.00020685,2]
[372840366,1752777055957,-500.0,0.00020685,2]
[372840368,1752777055967,-500.0,0.00020685,2]
[372840370,1752777055976,-500.0,0.00020685,2]
[372840372,1752777055986,-171.63318435,0.00020685,2]
[372840374,1752777055995,-500.0,0.00020685,2]
[372840376,1752777056005,-500.0,0.00020685,2]
[372840378,1752777056014,-151.0,0.00020685,2]
[372840380,1752777056023,-151.0,0.00020685,2]
[372840382,1752777056033,-151.0,0.00020685,2]
[372840384,1752777056042,-151.0,0.00020685,2]
[372840386,1752777056052,-151.0,0.00020685,2]
[372840388,1752777056061,-151.0,0.00020685,2]
[372840390,1752777056071,-500.0,0.000207,2]
[372840392,1752777056082,-150.0,0.00020733,2]
[372840394,1752777056091,-150.0,0.00020733,2]
[372840396,1752777056101,-223.0315306,0.0002074,2]
[372840398,1752777056112,-780.0,0.00020786,2]
[372840400,1752777056121,-653.0,0.00020786,2]
[372840402,1752777056130,-653.0,0.00020786,2]
[372840404,1752777056140,-151.0,0.00020786,2]
[372840406,1752777056150,-151.0,0.00020786,2]
[372840408,1752777056163,-151.0,0.00020786,2]
[372840410,1752777056173,-151.0,0.00020786,2]
[372840412,1752777056183,-151.0,0.00020786,2]
[372840414,1752777056193,-150.0,0.00020817,2]
[372840416,1752777056204,-150.0,0.00020817,2]
[372840418,1752777056214,-150.0,0.00020817,2]
[372840420,1752777056225,-175.982,0.00020817,2]
[372840422,1752777056238,-1000.0,0.00020835,2]
[372840424,1752777056247,-500.0,0.00020879,2]
[372840426,1752777056256,-182.640814,0.00020935,2]
[372840428,1752777056266,-182.640814,0.00020935,2]
[372840431,1752777056275,-193.513132,0.00020935,2]
[372840432,1752777056285,-523.019265,0.00020935,2]
[372840434,1752777056294,-523.019265,0.00020935,2]
[372840437,1752777056303,-169.94933,0.00020935,2]
[372840439,1752777056312,-169.94933,0.00020935,2]
[372840441,1752777056322,-1124.62,0.00020947,2]
[372840443,1752777056331,-541.9,0.00020947,2]
[372840445,1752777056341,-831.11,0.00020947,2]
[372840447,1752777056350,-509.45,0.00020947,2]
[372840449,1752777056359,-516.75,0.00020947,2]
[372840451,1752777056369,-617.66,0.00020947,2]
[372840453,1752777056378,-477.56112249,0.00020947,2]
[372840455,1752777056387,-1200.95,0.00020947,2]
[372840457,1752777056396,-7796.05,0.00020949,10]
[372840459,1752777056405,-13458.33,0.00020949,10]
[372840461,1752777056414,-11215.27,0.00020949,10]
[372840463,1752777056423,-460.0,0.0002095,2]
[372840465,1752777056432,-379.88,0.00020951,2]
[372840467,1752777056441,-460.0,0.00020952,2]
[372840469,1752777056450,-1565.97,0.00020952,2]
[372840471,1752777056460,-460.0,0.00020952,2]
[372840473,1752777056469,-887.34,0.00020952,2]
[372840475,1752777056478,-685.87,0.00020952,2]
[372840477,1752777056487,-151.0,0.00020953,2]
[372840479,1752777056497,-151.0,0.00020953,2]
[372840481,1752777056506,-151.0,0.00020953,2]
[372840483,1752777056515,-151.0,0.00020953,2]
[372840485,1752777056526,-590.75,0.00020953,2]
[372840487,1752777056535,-781.36,0.00020956,2]
[372840489,1752777056544,-513.45,0.00020956,2]
[372840491,1752777056553,-1623.29,0.00020956,2]
[372840493,1752777056563,-182.329208,0.00020959,2]
[372840495,1752777056572,-182.329208,0.00020959,2]
[372840497,1752777056582,-192.788116,0.00020959,2]
[372840499,1752777056591,-192.788116,0.00020959,2]
[372840501,1752777056600,-151.0,0.00020959,2]
[372840503,1752777056609,-151.0,0.00020959,2]
[372840505,1752777056618,-151.0,0.00020959,2]
[372840507,1752777056627,-151.0,0.00020959,2]
[372840509,1752777056637,-151.0,0.00020959,2]
[372840511,1752777056646,-750.517947,0.00020959,2]
[372840513,1752777056656,-750.517947,0.00020959,2]
[372840515,1752777056665,-288.244979,0.00020959,2]
[372840517,1752777056674,-288.244979,0.00020959,2]
[372840519,1752777056683,-261.056116,0.00020974,2]
[372840521,1752777056694,-31306.0,0.00021,2]
[372840523,1752777056703,-171.170733,0.00021,2]
[372840526,1752777056715,-40000.000001,0.00021,4]
[372840528,1752777056724,-151.0,0.00021,2]
[372840530,1752777056733,-151.0,0.00021,2]
[372840531,1752777056743,-151.0,0.00021,2]
[372840534,1752777056752,-294.67359,0.00021,2]
[372840536,1752777056763,-261.056116,0.00021,4]
[372840538,1752777056773,-387.287709,0.00021,2]
[372840540,1752777056782,-387.287709,0.00021,2]
[372840542,1752777056791,-208.043851,0.00021,2]
[372840544,1752777056802,-208.043851,0.00021,2]
[372840546,1752777056812,-151.0,0.00021,2]
[372840547,1752777056821,-151.0,0.00021,2]
[372840550,1752777056830,-261.056116,0.00021018,4]
[372840552,1752777056840,-261.056116,0.00021035,4]
[372840554,1752777056849,-261.056116,0.00021053,4]
[372840556,1752777056859,-2372.16468111,0.00021057,2]
[372840558,1752777056869,-151.0,0.00021059,2]
[372840560,1752777056879,-151.0,0.00021059,2]
[372840572,1752777056987,-780.0,0.0002106,2]
[372840574,1752777056997,-653.0,0.0002106,2]
[372840576,1752777057008,-653.0,0.0002106,2]
[372840578,1752777057017,-198.0,0.0002106,2]
[372840580,1752777057027,-151.0,0.0002106,2]
[372840582,1752777057036,-151.0,0.0002106,2]
[372840584,1752777057045,-198.0,0.0002106,2]
[372840586,1752777057055,-198.0,0.0002106,2]
[372840588,1752777057063,-151.0,0.0002106,2]
[372840590,1752777057073,-151.0,0.0002106,2]
[372840592,1752777057082,-151.0,0.0002106,2]
[372840594,1752777057091,-261.056116,0.0002107,4]
[372840596,1752777057100,-172.47,0.0002108,2]
[372840598,1752777057110,-160.0,0.00021106,3]
[372840600,1752777057119,-274.394212,0.00021166,2]
[372840602,1752777057128,-151.0,0.00021188,2]
[372840604,1752777057138,-151.0,0.00021188,2]
[372840606,1752777057150,-228.017257,0.00021188,2]
[372840608,1752777057159,-660.0,0.00021192,2]
[372840610,1752777057168,-172.46889254,0.00021207,2]
[372840612,1752777057178,-1124.62,0.00021221,2]
[372840614,1752777057188,-541.9,0.00021221,2]
[372840616,1752777057199,-831.11,0.00021221,2]
[372840618,1752777057208,-509.45,0.00021221,2]
[372840620,1752777057218,-516.75,0.00021221,2]
[372840622,1752777057229,-617.66,0.00021221,2]
[372840624,1752777057239,-1200.95,0.00021221,2]
[372840626,1752777057248,-174.767655,0.00021223,2]
[372840628,1752777057258,-174.767655,0.00021223,2]
[372840630,1752777057267,-497.38764359,0.00021224,2]
[372840633,1752777057277,-460.0,0.00021226,2]
[372840635,1752777057286,-1565.97,0.00021226,2]
[372840636,1752777057295,-460.0,0.00021226,2]
[372840638,1752777057304,-887.34,0.00021226,2]
[372840641,1752777057314,-685.87,0.00021226,2]
[372840643,1752777057323,-590.75,0.00021227,2]
[372840644,1752777057332,-781.36,0.0002123,2]
[372840646,1752777057341,-513.45,0.0002123,2]
[372840649,1752777057351,-1623.29,0.0002123,2]
[372840650,1752777057360,-206.552877,0.00021233,2]
[372840653,1752777057369,-439.371497,0.00021233,2]
[372840655,1752777057379,-439.371497,0.00021233,2]
[372840657,1752777057388,-261.056116,0.00021311,3]
[372840659,1752777057397,-780.0,0.00021334,2]
[372840660,1752777057406,-653.0,0.00021334,2]
[372840662,1752777057416,-653.0,0.00021334,2]
[372840665,1752777057425,-151.0,0.00021334,2]
[372840667,1752777057435,-151.0,0.00021334,2]
[372840669,1752777057444,-151.0,0.00021334,2]
[372840671,1752777057453,-500.0,0.00021366,2]
[372840673,1752777057464,-670.74364772,0.00021383,2]
[372840675,1752777057474,-151.0,0.000214,4]
[372840677,1752777057483,-800.0,0.00021432,2]
[372840679,1752777057492,-1124.62,0.00021495,2]
[372840681,1752777057503,-541.9,0.00021495,2]
[372840683,1752777057513,-831.11,0.00021495,2]
[372840685,1752777057526,-509.45,0.00021495,2]
[372840687,1752777057539,-516.75,0.00021495,2]
[372840689,1752777057548,-617.66,0.00021495,2]
[372840691,1752777057558,-1200.95,0.00021495,2]
[372840693,1752777057568,-22844.0766304,0.000215,2]
[372840695,1752777057577,-460.0,0.000215,2]
[372840697,1752777057586,-1565.97,0.000215,2]
[372840699,1752777057596,-460.0,0.000215,2]
[372840701,1752777057605,-887.34,0.000215,2]
[372840703,1752777057615,-685.87,0.000215,2]
[372840705,1752777057624,-590.75,0.00021501,2]
[372840707,1752777057634,-781.36,0.00021504,2]
[372840709,1752777057644,-513.45,0.00021504,2]
[372840711,1752777057663,-1623.29,0.00021504,2]
[372840713,1752777057671,-567.32925396,0.00021541,5]
[372840715,1752777057681,-780.0,0.00021608,2]
[372840717,1752777057690,-653.0,0.00021608,2]
[372840719,1752777057700,-653.0,0.00021608,2]
[372840721,1752777057709,-255.77817653,0.00021608,2]
[372840723,1752777057719,-151.0,0.00021608,2]
[372840725,1752777057728,-600.0,0.00021696,2]
[372840727,1752777057737,-151.0,0.00021696,2]
[372840729,1752777057747,-151.0,0.00021696,2]
[372840731,1752777057756,-151.0,0.00021696,2]
[372840733,1752777057766,-151.0,0.00021696,2]
[372840735,1752777057776,-151.0,0.00021696,2]
[372840737,1752777057786,-220.51795754,0.00021698,2]
[372840739,1752777057795,-760.0,0.0002174,2]
[372840741,1752777057806,-1124.62,0.00021769,2]
[372840743,1752777057816,-541.9,0.00021769,2]
[372840745,1752777057825,-831.11,0.00021769,2]
[372840747,1752777057834,-509.45,0.00021769,2]
[372840749,1752777057844,-516.75,0.00021769,2]
[372840751,1752777057854,-617.66,0.00021769,2]
[372840753,1752777057863,-1200.95,0.00021769,2]
[372840755,1752777057872,-343.44726865,0.00021774,2]
[372840757,1752777057881,-1565.97,0.00021774,2]
[372840759,1752777057891,-460.0,0.00021774,2]
[372840761,1752777057902,-887.34,0.00021774,2]
[372840763,1752777057912,-685.87,0.00021774,2]
[372840765,1752777057922,-590.75,0.00021775,2]
[372840767,1752777057931,-781.36,0.00021778,2]
[372840769,1752777057940,-513.45,0.00021778,2]
[372840771,1752777057950,-1623.29,0.00021778,2]
[372840773,1752777057962,-160.0,0.00021843,4]
[372840775,1752777057972,-192.788116,0.00021865,2]
[372840778,1752777057982,-192.788116,0.00021865,2]
[372840780,1752777057991,-151.0,0.00021865,2]
[372840782,1752777058000,-151.0,0.00021865,2]
[372840783,1752777058010,-159.7589233,0.00021876,2]
[372840784,1752777058019,-780.0,0.00021882,2]
[372840785,1752777058029,-653.0,0.00021882,2]
[372840786,1752777058038,-653.0,0.00021882,2]
[372840787,1752777058048,-245.0,0.00021882,2]
[372840788,1752777058057,-151.0,0.00021918,2]
[372840789,1752777058067,-151.0,0.00021918,2]
[372840790,1752777058077,-301.108267,0.00021918,2]
[372840791,1752777058086,-301.108267,0.00021918,2]
[372840792,1752777058095,-301.108267,0.00021918,2]
[372840793,1752777058105,-301.108267,0.00021918,2]
[372840794,1752777058114,-152.0,0.00021918,2]
[372840796,1752777058123,-152.0,0.00021918,2]
[372840797,1752777058133,-182.329208,0.00021918,7]
[372840799,1752777058143,-182.329208,0.00021918,7]
[372840801,1752777058157,-601.80256504,0.00021922,2]
[372840803,1752777058166,-159.7589233,0.00021937,2]
[372840805,1752777058176,-159.7589235,0.00021937,2]
[372840807,1752777058185,-159.7589233,0.00021937,2]
[372840809,1752777058195,-159.7589235,0.00021937,2]
[372840811,1752777058206,-261.056116,0.00021962,3]
[372840813,1752777058220,-5940.90224285,0.00022,7]
[372840815,1752777058231,-6791.25,0.00022,7]
[372840817,1752777058242,-20000.0,0.00022,5]
[372840819,1752777058251,-214.44804168,0.00022,7]
[372840821,1752777058261,-151.0,0.00022,7]
[372840823,1752777058270,-3358.77,0.00022,7]
[372840825,1752777058280,-151.0,0.00022,7]
[372840827,1752777058290,-151.0,0.00022,7]
[372840829,1752777058300,-289.368808,0.00022,7]